{"text_format":"3","workbook":"xlsx","n_sheets":4,"sheets":["Költségvetés áttekintése","Költségvetés összegzése","Havi kiadások","További adatok"],"not_rendered":{"charts":1,"images":4,"defined_names":7,"pivot_tables":2},"read":"whole","date_system":"1900"}

{"sheet":"Költségvetés áttekintése","index":0,"n_rows":12,"n_cols":8,"rows_kept":12,"merged":[[1,1,1,2],[2,1,2,2],[3,1,3,2],[4,1,4,2]]}
[{"$nulls":7}," "]
[null,"Egyenleg"]
[null,"Tervezett egyenleg",null,{"$f":"Tervezett_bevétel-Tervezett_kiadások","v":{"v":1585,"d":"1,585 Ft"}},null,"Tervezett mínusz kiadások"]
[null,"Tényleges egyenleg ",null,{"$f":"Tényleges_bevétel-Tényleges_kiadások","v":{"v":1740,"d":"1,740 Ft"}},null,"Tényleges mínusz kiadások"]
[null,"Különbözet",null,{"$f":"D4-D3","v":{"v":155,"d":"155 Ft"}},null,"Tényleges mínusz tervezett"]
[null,"Bevétel",{"$nulls":3},"Kiadások"]
[null,null,"Tervezett","Tényleges",null,"Tervezett","Tényleges"]
[null,"Bevétel 1",{"v":6000,"d":"6,000 Ft"},{"v":5800,"d":"5,800 Ft"},null,{"$f":"SUM(Havi_kiadások_táblázat[Tervezett költség])","v":{"v":7915,"d":"7,915 Ft"}},{"$f":"SUM(Havi_kiadások_táblázat[Tényleges költség])","v":{"v":7860,"d":"7,860 Ft"}}]
[null,"Bevétel 2",{"v":1000,"d":"1,000 Ft"},{"v":2300,"d":"2,300 Ft"}]
[null,"Plusz bevétel",{"v":2500,"d":"2,500 Ft"},{"v":1500,"d":"1,500 Ft"}]
[null,"Összes bevétel",{"$f":"SUM(C8:C10)","v":{"v":9500,"d":"9,500 Ft"}},{"$f":"SUM(D8:D10)","v":{"v":9600,"d":"9,600 Ft"}}]
[null,"Tényleges kiadások lebontása"]

{"sheet":"Költségvetés összegzése","index":1,"n_rows":41,"n_cols":7,"rows_kept":41}
[null,"Költségvetés összegzése",{"$nulls":4}," "]
[]
[null,"Categories","Tervezett_költség","Tényleges_költség","Összeg / Különbözet"]
[null,"Gyerekek",{"v":140,"d":"140 Ft"},{"v":140,"d":"140 Ft"},{"v":0,"d":"0 Ft"}]
[null,"Egészségügy",null,null,{"v":0,"d":"0 Ft"}]
[null,"Iskolai kellékek",null,null,{"v":0,"d":"0 Ft"}]
[null,"Iskolai kiadások",{"v":100,"d":"100 Ft"},{"v":100,"d":"100 Ft"},{"v":0,"d":"0 Ft"}]
[null,"Iskolán kívüli tevékenységek",{"v":40,"d":"40 Ft"},{"v":40,"d":"40 Ft"},{"v":0,"d":"0 Ft"}]
[]
[null,"Szórakozás",{"v":400,"d":"400 Ft"},{"v":358,"d":"358 Ft"},{"v":42,"d":"42 Ft"}]
[null,"Filmek",{"v":50,"d":"50 Ft"},{"v":28,"d":"28 Ft"},{"v":22,"d":"22 Ft"}]
[null,"Koncertek",{"v":50,"d":"50 Ft"},{"v":40,"d":"40 Ft"},{"v":10,"d":"10 Ft"}]
[null,"Sportesemények",{"v":0,"d":"0 Ft"},{"v":40,"d":"40 Ft"},{"v":-40,"d":"-40 Ft"}]
[null,"Színház",{"v":200,"d":"200 Ft"},{"v":150,"d":"150 Ft"},{"v":50,"d":"50 Ft"}]
[null,"Videó/DVD (kölcsönzés)",{"v":30,"d":"30 Ft"},{"v":20,"d":"20 Ft"},{"v":10,"d":"10 Ft"}]
[null,"Videó/DVD (vásárlás)",{"v":20,"d":"20 Ft"},{"v":50,"d":"50 Ft"},{"v":-30,"d":"-30 Ft"}]
[null,"Zene (CD-k, letöltések stb.)",{"v":50,"d":"50 Ft"},{"v":30,"d":"30 Ft"},{"v":20,"d":"20 Ft"}]
[]
[null,"Adók",{"v":300,"d":"300 Ft"},{"v":300,"d":"300 Ft"},{"v":0,"d":"0 Ft"}]
[]
[null,"Ajándék és jótékonyság",{"v":100,"d":"100 Ft"},{"v":125,"d":"125 Ft"},{"v":-25,"d":"-25 Ft"}]
[]
[null,"Biztosítás",{"v":900,"d":"900 Ft"},{"v":900,"d":"900 Ft"},{"v":0,"d":"0 Ft"}]
[]
[null,"Étel",{"v":1100,"d":"1,100 Ft"},{"v":1320,"d":"1,320 Ft"},{"v":-220,"d":"-220 Ft"}]
[]
[null,"Háziállatok",{"v":170,"d":"170 Ft"},{"v":100,"d":"100 Ft"},{"v":70,"d":"70 Ft"}]
[]
[null,"Kozmetikumok",{"v":150,"d":"150 Ft"},{"v":140,"d":"140 Ft"},{"v":10,"d":"10 Ft"}]
[]
[null,"Közlekedés",{"v":1425,"d":"1,425 Ft"},{"v":1375,"d":"1,375 Ft"},{"v":50,"d":"50 Ft"}]
[]
[null,"Szállás",{"v":2830,"d":"2,830 Ft"},{"v":2702,"d":"2,702 Ft"},{"v":-72,"d":"-72 Ft"}]
[]
[null,"Hitelek",{"v":200,"d":"200 Ft"},{"v":200,"d":"200 Ft"},{"v":0,"d":"0 Ft"}]
[]
[null,"Megtakarítás",{"v":200,"d":"200 Ft"},{"v":200,"d":"200 Ft"},{"v":0,"d":"0 Ft"}]
[null,"Befektetési számla",{"v":200,"d":"200 Ft"},{"v":200,"d":"200 Ft"},{"v":0,"d":"0 Ft"}]
[null,"Nyugdíjszámla",null,null,{"v":0,"d":"0 Ft"}]
[]
[null,"Végösszeg",{"v":7915,"d":"7,915 Ft"},{"v":7860,"d":"7,860 Ft"},{"v":-145,"d":"-145 Ft"}]

{"sheet":"Havi kiadások","index":2,"n_rows":61,"n_cols":8,"rows_kept":61}
[{"$nulls":7}," "]
[null,"Leírás","Kategória","Tervezett költség","Tényleges költség","Különbözet","Tényleges költség áttekintése"]
[null,"Iskolán kívüli tevékenységek","Gyerekek",{"v":40,"d":"40 Ft"},{"v":40,"d":"40 Ft"},{"$f":"IF(OR(Havi_kiadások_táblázat[[#This Row],[Tervezett költség]]=\"\",Havi_kiadások_táblázat[[#This Row],[Tényleges költség]]=\"\"),\"\",Havi_kiadások_táblázat[[#This Row],[Tervezett költség]]-Havi_kiadások_táblázat[[#This Row],[Tényleges költség]])","v":{"v":0,"d":"0 Ft"}},{"$f":"Havi_kiadások_táblázat[[#This Row],[Tényleges költség]]","v":40}]
[null,"Egészségügy","Gyerekek",null,null,{"$f":"IF(OR(Havi_kiadások_táblázat[[#This Row],[Tervezett költség]]=\"\",Havi_kiadások_táblázat[[#This Row],[Tényleges költség]]=\"\"),\"\",Havi_kiadások_táblázat[[#This Row],[Tervezett költség]]-Havi_kiadások_táblázat[[#This Row],[Tényleges költség]])","v":""},{"$f":"Havi_kiadások_táblázat[[#This Row],[Tényleges költség]]","v":0}]
[null,"Iskolai kellékek","Gyerekek",null,null,{"$f":"IF(OR(Havi_kiadások_táblázat[[#This Row],[Tervezett költség]]=\"\",Havi_kiadások_táblázat[[#This Row],[Tényleges költség]]=\"\"),\"\",Havi_kiadások_táblázat[[#This Row],[Tervezett költség]]-Havi_kiadások_táblázat[[#This Row],[Tényleges költség]])","v":""},{"$f":"Havi_kiadások_táblázat[[#This Row],[Tényleges költség]]","v":0}]
[null,"Iskolai kiadások","Gyerekek",{"v":100,"d":"100 Ft"},{"v":100,"d":"100 Ft"},{"$f":"IF(OR(Havi_kiadások_táblázat[[#This Row],[Tervezett költség]]=\"\",Havi_kiadások_táblázat[[#This Row],[Tényleges költség]]=\"\"),\"\",Havi_kiadások_táblázat[[#This Row],[Tervezett költség]]-Havi_kiadások_táblázat[[#This Row],[Tényleges költség]])","v":{"v":0,"d":"0 Ft"}},{"$f":"Havi_kiadások_táblázat[[#This Row],[Tényleges költség]]","v":100}]
[null,"Koncertek","Szórakozás",{"v":50,"d":"50 Ft"},{"v":40,"d":"40 Ft"},{"$f":"IF(OR(Havi_kiadások_táblázat[[#This Row],[Tervezett költség]]=\"\",Havi_kiadások_táblázat[[#This Row],[Tényleges költség]]=\"\"),\"\",Havi_kiadások_táblázat[[#This Row],[Tervezett költség]]-Havi_kiadások_táblázat[[#This Row],[Tényleges költség]])","v":{"v":10,"d":"10 Ft"}},{"$f":"Havi_kiadások_táblázat[[#This Row],[Tényleges költség]]","v":40}]
[null,"Színház","Szórakozás",{"v":200,"d":"200 Ft"},{"v":150,"d":"150 Ft"},{"$f":"IF(OR(Havi_kiadások_táblázat[[#This Row],[Tervezett költség]]=\"\",Havi_kiadások_táblázat[[#This Row],[Tényleges költség]]=\"\"),\"\",Havi_kiadások_táblázat[[#This Row],[Tervezett költség]]-Havi_kiadások_táblázat[[#This Row],[Tényleges költség]])","v":{"v":50,"d":"50 Ft"}},{"$f":"Havi_kiadások_táblázat[[#This Row],[Tényleges költség]]","v":{"v":150,"d":"$150"}}]
[null,"Filmek","Szórakozás",{"v":50,"d":"50 Ft"},{"v":28,"d":"28 Ft"},{"$f":"IF(OR(Havi_kiadások_táblázat[[#This Row],[Tervezett költség]]=\"\",Havi_kiadások_táblázat[[#This Row],[Tényleges költség]]=\"\"),\"\",Havi_kiadások_táblázat[[#This Row],[Tervezett költség]]-Havi_kiadások_táblázat[[#This Row],[Tényleges költség]])","v":{"v":22,"d":"22 Ft"}},{"$f":"Havi_kiadások_táblázat[[#This Row],[Tényleges költség]]","v":28}]
[null,"Zene (CD-k, letöltések stb.)","Szórakozás",{"v":50,"d":"50 Ft"},{"v":30,"d":"30 Ft"},{"$f":"IF(OR(Havi_kiadások_táblázat[[#This Row],[Tervezett költség]]=\"\",Havi_kiadások_táblázat[[#This Row],[Tényleges költség]]=\"\"),\"\",Havi_kiadások_táblázat[[#This Row],[Tervezett költség]]-Havi_kiadások_táblázat[[#This Row],[Tényleges költség]])","v":{"v":20,"d":"20 Ft"}},{"$f":"Havi_kiadások_táblázat[[#This Row],[Tényleges költség]]","v":30}]
[null,"Sportesemények","Szórakozás",{"v":0,"d":"0 Ft"},{"v":40,"d":"40 Ft"},{"$f":"IF(OR(Havi_kiadások_táblázat[[#This Row],[Tervezett költség]]=\"\",Havi_kiadások_táblázat[[#This Row],[Tényleges költség]]=\"\"),\"\",Havi_kiadások_táblázat[[#This Row],[Tervezett költség]]-Havi_kiadások_táblázat[[#This Row],[Tényleges költség]])","v":{"v":-40,"d":"-40 Ft"}},{"$f":"Havi_kiadások_táblázat[[#This Row],[Tényleges költség]]","v":40}]
[null,"Videó/DVD (vásárlás)","Szórakozás",{"v":20,"d":"20 Ft"},{"v":50,"d":"50 Ft"},{"$f":"IF(OR(Havi_kiadások_táblázat[[#This Row],[Tervezett költség]]=\"\",Havi_kiadások_táblázat[[#This Row],[Tényleges költség]]=\"\"),\"\",Havi_kiadások_táblázat[[#This Row],[Tervezett költség]]-Havi_kiadások_táblázat[[#This Row],[Tényleges költség]])","v":{"v":-30,"d":"-30 Ft"}},{"$f":"Havi_kiadások_táblázat[[#This Row],[Tényleges költség]]","v":50}]
[null,"Videó/DVD (kölcsönzés)","Szórakozás",{"v":30,"d":"30 Ft"},{"v":20,"d":"20 Ft"},{"$f":"IF(OR(Havi_kiadások_táblázat[[#This Row],[Tervezett költség]]=\"\",Havi_kiadások_táblázat[[#This Row],[Tényleges költség]]=\"\"),\"\",Havi_kiadások_táblázat[[#This Row],[Tervezett költség]]-Havi_kiadások_táblázat[[#This Row],[Tényleges költség]])","v":{"v":10,"d":"10 Ft"}},{"$f":"Havi_kiadások_táblázat[[#This Row],[Tényleges költség]]","v":20}]
[null,"Étterem","Étel",{"v":1000,"d":"1,000 Ft"},{"v":1200,"d":"1,200 Ft"},{"$f":"IF(OR(Havi_kiadások_táblázat[[#This Row],[Tervezett költség]]=\"\",Havi_kiadások_táblázat[[#This Row],[Tényleges költség]]=\"\"),\"\",Havi_kiadások_táblázat[[#This Row],[Tervezett költség]]-Havi_kiadások_táblázat[[#This Row],[Tényleges költség]])","v":{"v":-200,"d":"-200 Ft"}},{"$f":"Havi_kiadások_táblázat[[#This Row],[Tényleges költség]]","v":1200}]
[null,"Bevásárlás","Étel",{"v":100,"d":"100 Ft"},{"v":120,"d":"120 Ft"},{"$f":"IF(OR(Havi_kiadások_táblázat[[#This Row],[Tervezett költség]]=\"\",Havi_kiadások_táblázat[[#This Row],[Tényleges költség]]=\"\"),\"\",Havi_kiadások_táblázat[[#This Row],[Tervezett költség]]-Havi_kiadások_táblázat[[#This Row],[Tényleges költség]])","v":{"v":-20,"d":"-20 Ft"}},{"$f":"Havi_kiadások_táblázat[[#This Row],[Tényleges költség]]","v":120}]
[null,"Jótékonyság 1","Ajándék és jótékonyság",{"v":75,"d":"75 Ft"},{"v":100,"d":"100 Ft"},{"$f":"IF(OR(Havi_kiadások_táblázat[[#This Row],[Tervezett költség]]=\"\",Havi_kiadások_táblázat[[#This Row],[Tényleges költség]]=\"\"),\"\",Havi_kiadások_táblázat[[#This Row],[Tervezett költség]]-Havi_kiadások_táblázat[[#This Row],[Tényleges költség]])","v":{"v":-25,"d":"-25 Ft"}},{"$f":"Havi_kiadások_táblázat[[#This Row],[Tényleges költség]]","v":100}]
[null,"Jótékonyság 2","Ajándék és jótékonyság",{"v":25,"d":"25 Ft"},{"v":25,"d":"25 Ft"},{"$f":"IF(OR(Havi_kiadások_táblázat[[#This Row],[Tervezett költség]]=\"\",Havi_kiadások_táblázat[[#This Row],[Tényleges költség]]=\"\"),\"\",Havi_kiadások_táblázat[[#This Row],[Tervezett költség]]-Havi_kiadások_táblázat[[#This Row],[Tényleges költség]])","v":{"v":0,"d":"0 Ft"}},{"$f":"Havi_kiadások_táblázat[[#This Row],[Tényleges költség]]","v":25}]
[null,"Ajándék 1","Ajándék és jótékonyság",null,null,{"$f":"IF(OR(Havi_kiadások_táblázat[[#This Row],[Tervezett költség]]=\"\",Havi_kiadások_táblázat[[#This Row],[Tényleges költség]]=\"\"),\"\",Havi_kiadások_táblázat[[#This Row],[Tervezett költség]]-Havi_kiadások_táblázat[[#This Row],[Tényleges költség]])","v":""},{"$f":"Havi_kiadások_táblázat[[#This Row],[Tényleges költség]]","v":0}]
[null,"Ajándék 2","Ajándék és jótékonyság",null,null,{"$f":"IF(OR(Havi_kiadások_táblázat[[#This Row],[Tervezett költség]]=\"\",Havi_kiadások_táblázat[[#This Row],[Tényleges költség]]=\"\"),\"\",Havi_kiadások_táblázat[[#This Row],[Tervezett költség]]-Havi_kiadások_táblázat[[#This Row],[Tényleges költség]])","v":""},{"$f":"Havi_kiadások_táblázat[[#This Row],[Tényleges költség]]","v":0}]
[null,"Kábel/műhold","Szállás",{"v":100,"d":"100 Ft"},{"v":100,"d":"100 Ft"},{"$f":"IF(OR(Havi_kiadások_táblázat[[#This Row],[Tervezett költség]]=\"\",Havi_kiadások_táblázat[[#This Row],[Tényleges költség]]=\"\"),\"\",Havi_kiadások_táblázat[[#This Row],[Tervezett költség]]-Havi_kiadások_táblázat[[#This Row],[Tényleges költség]])","v":{"v":0,"d":"0 Ft"}},{"$f":"Havi_kiadások_táblázat[[#This Row],[Tényleges költség]]","v":100}]
[null,"Áram","Szállás",{"v":45,"d":"45 Ft"},{"v":50,"d":"50 Ft"},{"$f":"IF(OR(Havi_kiadások_táblázat[[#This Row],[Tervezett költség]]=\"\",Havi_kiadások_táblázat[[#This Row],[Tényleges költség]]=\"\"),\"\",Havi_kiadások_táblázat[[#This Row],[Tervezett költség]]-Havi_kiadások_táblázat[[#This Row],[Tényleges költség]])","v":{"v":-5,"d":"-5 Ft"}},{"$f":"Havi_kiadások_táblázat[[#This Row],[Tényleges költség]]","v":50}]
[null,"Gáz","Szállás",{"v":300,"d":"300 Ft"},{"v":400,"d":"400 Ft"},{"$f":"IF(OR(Havi_kiadások_táblázat[[#This Row],[Tervezett költség]]=\"\",Havi_kiadások_táblázat[[#This Row],[Tényleges költség]]=\"\"),\"\",Havi_kiadások_táblázat[[#This Row],[Tervezett költség]]-Havi_kiadások_táblázat[[#This Row],[Tényleges költség]])","v":{"v":-100,"d":"-100 Ft"}},{"$f":"Havi_kiadások_táblázat[[#This Row],[Tényleges költség]]","v":400}]
[null,"Takarítószolgálat","Szállás",{"v":200,"d":"200 Ft"},null,{"$f":"IF(OR(Havi_kiadások_táblázat[[#This Row],[Tervezett költség]]=\"\",Havi_kiadások_táblázat[[#This Row],[Tényleges költség]]=\"\"),\"\",Havi_kiadások_táblázat[[#This Row],[Tervezett költség]]-Havi_kiadások_táblázat[[#This Row],[Tényleges költség]])","v":""},{"$f":"Havi_kiadások_táblázat[[#This Row],[Tényleges költség]]","v":0}]
[null,"Karbantartás","Szállás",{"v":200,"d":"200 Ft"},{"v":150,"d":"150 Ft"},{"$f":"IF(OR(Havi_kiadások_táblázat[[#This Row],[Tervezett költség]]=\"\",Havi_kiadások_táblázat[[#This Row],[Tényleges költség]]=\"\"),\"\",Havi_kiadások_táblázat[[#This Row],[Tervezett költség]]-Havi_kiadások_táblázat[[#This Row],[Tényleges költség]])","v":{"v":50,"d":"50 Ft"}},{"$f":"Havi_kiadások_táblázat[[#This Row],[Tényleges költség]]","v":150}]
[null,"Jelzálog vagy bérleti díj","Szállás",{"v":1700,"d":"1,700 Ft"},{"v":1700,"d":"1,700 Ft"},{"$f":"IF(OR(Havi_kiadások_táblázat[[#This Row],[Tervezett költség]]=\"\",Havi_kiadások_táblázat[[#This Row],[Tényleges költség]]=\"\"),\"\",Havi_kiadások_táblázat[[#This Row],[Tervezett költség]]-Havi_kiadások_táblázat[[#This Row],[Tényleges költség]])","v":{"v":0,"d":"0 Ft"}},{"$f":"Havi_kiadások_táblázat[[#This Row],[Tényleges költség]]","v":1700}]
[null,"Földgáz/olaj","Szállás",null,null,{"$f":"IF(OR(Havi_kiadások_táblázat[[#This Row],[Tervezett költség]]=\"\",Havi_kiadások_táblázat[[#This Row],[Tényleges költség]]=\"\"),\"\",Havi_kiadások_táblázat[[#This Row],[Tervezett költség]]-Havi_kiadások_táblázat[[#This Row],[Tényleges költség]])","v":""},{"$f":"Havi_kiadások_táblázat[[#This Row],[Tényleges költség]]","v":0}]
[null,"Online/internetszolgáltatás","Szállás",{"v":100,"d":"100 Ft"},{"v":100,"d":"100 Ft"},{"$f":"IF(OR(Havi_kiadások_táblázat[[#This Row],[Tervezett költség]]=\"\",Havi_kiadások_táblázat[[#This Row],[Tényleges költség]]=\"\"),\"\",Havi_kiadások_táblázat[[#This Row],[Tervezett költség]]-Havi_kiadások_táblázat[[#This Row],[Tényleges költség]])","v":{"v":0,"d":"0 Ft"}},{"$f":"Havi_kiadások_táblázat[[#This Row],[Tényleges költség]]","v":100}]
[null,"Telefon (mobil)","Szállás",{"v":60,"d":"60 Ft"},{"v":60,"d":"60 Ft"},{"$f":"IF(OR(Havi_kiadások_táblázat[[#This Row],[Tervezett költség]]=\"\",Havi_kiadások_táblázat[[#This Row],[Tényleges költség]]=\"\"),\"\",Havi_kiadások_táblázat[[#This Row],[Tervezett költség]]-Havi_kiadások_táblázat[[#This Row],[Tényleges költség]])","v":{"v":0,"d":"0 Ft"}},{"$f":"Havi_kiadások_táblázat[[#This Row],[Tényleges költség]]","v":60}]
[null,"Telefon (otthoni)","Szállás",{"v":35,"d":"35 Ft"},{"v":39,"d":"39 Ft"},{"$f":"IF(OR(Havi_kiadások_táblázat[[#This Row],[Tervezett költség]]=\"\",Havi_kiadások_táblázat[[#This Row],[Tényleges költség]]=\"\"),\"\",Havi_kiadások_táblázat[[#This Row],[Tervezett költség]]-Havi_kiadások_táblázat[[#This Row],[Tényleges költség]])","v":{"v":-4,"d":"-4 Ft"}},{"$f":"Havi_kiadások_táblázat[[#This Row],[Tényleges költség]]","v":39}]
[null,"Kellékek","Szállás",{"v":40,"d":"40 Ft"},{"v":55,"d":"55 Ft"},{"$f":"IF(OR(Havi_kiadások_táblázat[[#This Row],[Tervezett költség]]=\"\",Havi_kiadások_táblázat[[#This Row],[Tényleges költség]]=\"\"),\"\",Havi_kiadások_táblázat[[#This Row],[Tervezett költség]]-Havi_kiadások_táblázat[[#This Row],[Tényleges költség]])","v":{"v":-15,"d":"-15 Ft"}},{"$f":"Havi_kiadások_táblázat[[#This Row],[Tényleges költség]]","v":55}]
[null,"Szemétdíj és szelektív hulladékgyűjtés","Szállás",{"v":25,"d":"25 Ft"},{"v":22,"d":"22 Ft"},{"$f":"IF(OR(Havi_kiadások_táblázat[[#This Row],[Tervezett költség]]=\"\",Havi_kiadások_táblázat[[#This Row],[Tényleges költség]]=\"\"),\"\",Havi_kiadások_táblázat[[#This Row],[Tervezett költség]]-Havi_kiadások_táblázat[[#This Row],[Tényleges költség]])","v":{"v":3,"d":"3 Ft"}},{"$f":"Havi_kiadások_táblázat[[#This Row],[Tényleges költség]]","v":22}]
[null,"Víz és csatornázás","Szállás",{"v":25,"d":"25 Ft"},{"v":26,"d":"26 Ft"},{"$f":"IF(OR(Havi_kiadások_táblázat[[#This Row],[Tervezett költség]]=\"\",Havi_kiadások_táblázat[[#This Row],[Tényleges költség]]=\"\"),\"\",Havi_kiadások_táblázat[[#This Row],[Tervezett költség]]-Havi_kiadások_táblázat[[#This Row],[Tényleges költség]])","v":{"v":-1,"d":"-1 Ft"}},{"$f":"Havi_kiadások_táblázat[[#This Row],[Tényleges költség]]","v":26}]
[null,"Egészség","Biztosítás",{"v":400,"d":"400 Ft"},{"v":400,"d":"400 Ft"},{"$f":"IF(OR(Havi_kiadások_táblázat[[#This Row],[Tervezett költség]]=\"\",Havi_kiadások_táblázat[[#This Row],[Tényleges költség]]=\"\"),\"\",Havi_kiadások_táblázat[[#This Row],[Tervezett költség]]-Havi_kiadások_táblázat[[#This Row],[Tényleges költség]])","v":{"v":0,"d":"0 Ft"}},{"$f":"Havi_kiadások_táblázat[[#This Row],[Tényleges költség]]","v":400}]
[null,"Otthon","Biztosítás",{"v":400,"d":"400 Ft"},{"v":400,"d":"400 Ft"},{"$f":"IF(OR(Havi_kiadások_táblázat[[#This Row],[Tervezett költség]]=\"\",Havi_kiadások_táblázat[[#This Row],[Tényleges költség]]=\"\"),\"\",Havi_kiadások_táblázat[[#This Row],[Tervezett költség]]-Havi_kiadások_táblázat[[#This Row],[Tényleges költség]])","v":{"v":0,"d":"0 Ft"}},{"$f":"Havi_kiadások_táblázat[[#This Row],[Tényleges költség]]","v":400}]
[null,"Élet","Biztosítás",{"v":100,"d":"100 Ft"},{"v":100,"d":"100 Ft"},{"$f":"IF(OR(Havi_kiadások_táblázat[[#This Row],[Tervezett költség]]=\"\",Havi_kiadások_táblázat[[#This Row],[Tényleges költség]]=\"\"),\"\",Havi_kiadások_táblázat[[#This Row],[Tervezett költség]]-Havi_kiadások_táblázat[[#This Row],[Tényleges költség]])","v":{"v":0,"d":"0 Ft"}},{"$f":"Havi_kiadások_táblázat[[#This Row],[Tényleges költség]]","v":100}]
[null,"Hitelkártya 1","Hitelek",{"v":200,"d":"200 Ft"},{"v":200,"d":"200 Ft"},{"$f":"IF(OR(Havi_kiadások_táblázat[[#This Row],[Tervezett költség]]=\"\",Havi_kiadások_táblázat[[#This Row],[Tényleges költség]]=\"\"),\"\",Havi_kiadások_táblázat[[#This Row],[Tervezett költség]]-Havi_kiadások_táblázat[[#This Row],[Tényleges költség]])","v":{"v":0,"d":"0 Ft"}},{"$f":"Havi_kiadások_táblázat[[#This Row],[Tényleges költség]]","v":200}]
[null,"Hitelkártya 2","Hitelek",null,null,{"$f":"IF(OR(Havi_kiadások_táblázat[[#This Row],[Tervezett költség]]=\"\",Havi_kiadások_táblázat[[#This Row],[Tényleges költség]]=\"\"),\"\",Havi_kiadások_táblázat[[#This Row],[Tervezett költség]]-Havi_kiadások_táblázat[[#This Row],[Tényleges költség]])","v":""},{"$f":"Havi_kiadások_táblázat[[#This Row],[Tényleges költség]]","v":0}]
[null,"Hitelkártya 3","Hitelek",null,null,{"$f":"IF(OR(Havi_kiadások_táblázat[[#This Row],[Tervezett költség]]=\"\",Havi_kiadások_táblázat[[#This Row],[Tényleges költség]]=\"\"),\"\",Havi_kiadások_táblázat[[#This Row],[Tervezett költség]]-Havi_kiadások_táblázat[[#This Row],[Tényleges költség]])","v":""},{"$f":"Havi_kiadások_táblázat[[#This Row],[Tényleges költség]]","v":0}]
[null,"Személyes","Hitelek",null,null,{"$f":"IF(OR(Havi_kiadások_táblázat[[#This Row],[Tervezett költség]]=\"\",Havi_kiadások_táblázat[[#This Row],[Tényleges költség]]=\"\"),\"\",Havi_kiadások_táblázat[[#This Row],[Tervezett költség]]-Havi_kiadások_táblázat[[#This Row],[Tényleges költség]])","v":""},{"$f":"Havi_kiadások_táblázat[[#This Row],[Tényleges költség]]","v":0}]
[null,"Diák","Hitelek",null,null,{"$f":"IF(OR(Havi_kiadások_táblázat[[#This Row],[Tervezett költség]]=\"\",Havi_kiadások_táblázat[[#This Row],[Tényleges költség]]=\"\"),\"\",Havi_kiadások_táblázat[[#This Row],[Tervezett költség]]-Havi_kiadások_táblázat[[#This Row],[Tényleges költség]])","v":""},{"$f":"Havi_kiadások_táblázat[[#This Row],[Tényleges költség]]","v":0}]
[null,"Ruhanemű","Kozmetikumok",{"v":150,"d":"150 Ft"},{"v":140,"d":"140 Ft"},{"$f":"IF(OR(Havi_kiadások_táblázat[[#This Row],[Tervezett költség]]=\"\",Havi_kiadások_táblázat[[#This Row],[Tényleges költség]]=\"\"),\"\",Havi_kiadások_táblázat[[#This Row],[Tervezett költség]]-Havi_kiadások_táblázat[[#This Row],[Tényleges költség]])","v":{"v":10,"d":"10 Ft"}},{"$f":"Havi_kiadások_táblázat[[#This Row],[Tényleges költség]]","v":140}]
[null,"Tisztító","Kozmetikumok",null,null,{"$f":"IF(OR(Havi_kiadások_táblázat[[#This Row],[Tervezett költség]]=\"\",Havi_kiadások_táblázat[[#This Row],[Tényleges költség]]=\"\"),\"\",Havi_kiadások_táblázat[[#This Row],[Tervezett költség]]-Havi_kiadások_táblázat[[#This Row],[Tényleges költség]])","v":""},{"$f":"Havi_kiadások_táblázat[[#This Row],[Tényleges költség]]","v":0}]
[null,"Haj- és körömápolás","Kozmetikumok",null,null,{"$f":"IF(OR(Havi_kiadások_táblázat[[#This Row],[Tervezett költség]]=\"\",Havi_kiadások_táblázat[[#This Row],[Tényleges költség]]=\"\"),\"\",Havi_kiadások_táblázat[[#This Row],[Tervezett költség]]-Havi_kiadások_táblázat[[#This Row],[Tényleges költség]])","v":""},{"$f":"Havi_kiadások_táblázat[[#This Row],[Tényleges költség]]","v":0}]
[null,"Egészségklub","Kozmetikumok",null,null,{"$f":"IF(OR(Havi_kiadások_táblázat[[#This Row],[Tervezett költség]]=\"\",Havi_kiadások_táblázat[[#This Row],[Tényleges költség]]=\"\"),\"\",Havi_kiadások_táblázat[[#This Row],[Tervezett költség]]-Havi_kiadások_táblázat[[#This Row],[Tényleges költség]])","v":""},{"$f":"Havi_kiadások_táblázat[[#This Row],[Tényleges költség]]","v":0}]
[null,"Egészségügy","Kozmetikumok",null,null,{"$f":"IF(OR(Havi_kiadások_táblázat[[#This Row],[Tervezett költség]]=\"\",Havi_kiadások_táblázat[[#This Row],[Tényleges költség]]=\"\"),\"\",Havi_kiadások_táblázat[[#This Row],[Tervezett költség]]-Havi_kiadások_táblázat[[#This Row],[Tényleges költség]])","v":""},{"$f":"Havi_kiadások_táblázat[[#This Row],[Tényleges költség]]","v":0}]
[null,"Étel","Háziállatok",{"v":150,"d":"150 Ft"},{"v":75,"d":"75 Ft"},{"$f":"IF(OR(Havi_kiadások_táblázat[[#This Row],[Tervezett költség]]=\"\",Havi_kiadások_táblázat[[#This Row],[Tényleges költség]]=\"\"),\"\",Havi_kiadások_táblázat[[#This Row],[Tervezett költség]]-Havi_kiadások_táblázat[[#This Row],[Tényleges költség]])","v":{"v":75,"d":"75 Ft"}},{"$f":"Havi_kiadások_táblázat[[#This Row],[Tényleges költség]]","v":75}]
[null,"Ápolás","Háziállatok",{"v":20,"d":"20 Ft"},{"v":25,"d":"25 Ft"},{"$f":"IF(OR(Havi_kiadások_táblázat[[#This Row],[Tervezett költség]]=\"\",Havi_kiadások_táblázat[[#This Row],[Tényleges költség]]=\"\"),\"\",Havi_kiadások_táblázat[[#This Row],[Tervezett költség]]-Havi_kiadások_táblázat[[#This Row],[Tényleges költség]])","v":{"v":-5,"d":"-5 Ft"}},{"$f":"Havi_kiadások_táblázat[[#This Row],[Tényleges költség]]","v":25}]
[null,"Egészségügy","Háziállatok",null,null,{"$f":"IF(OR(Havi_kiadások_táblázat[[#This Row],[Tervezett költség]]=\"\",Havi_kiadások_táblázat[[#This Row],[Tényleges költség]]=\"\"),\"\",Havi_kiadások_táblázat[[#This Row],[Tervezett költség]]-Havi_kiadások_táblázat[[#This Row],[Tényleges költség]])","v":""},{"$f":"Havi_kiadások_táblázat[[#This Row],[Tényleges költség]]","v":0}]
[null,"Játékok","Háziállatok",null,null,{"$f":"IF(OR(Havi_kiadások_táblázat[[#This Row],[Tervezett költség]]=\"\",Havi_kiadások_táblázat[[#This Row],[Tényleges költség]]=\"\"),\"\",Havi_kiadások_táblázat[[#This Row],[Tervezett költség]]-Havi_kiadások_táblázat[[#This Row],[Tényleges költség]])","v":""},{"$f":"Havi_kiadások_táblázat[[#This Row],[Tényleges költség]]","v":0}]
[null,"Befektetési számla","Megtakarítás",{"v":200,"d":"200 Ft"},{"v":200,"d":"200 Ft"},{"$f":"IF(OR(Havi_kiadások_táblázat[[#This Row],[Tervezett költség]]=\"\",Havi_kiadások_táblázat[[#This Row],[Tényleges költség]]=\"\"),\"\",Havi_kiadások_táblázat[[#This Row],[Tervezett költség]]-Havi_kiadások_táblázat[[#This Row],[Tényleges költség]])","v":{"v":0,"d":"0 Ft"}},{"$f":"Havi_kiadások_táblázat[[#This Row],[Tényleges költség]]","v":200}]
[null,"Nyugdíjszámla","Megtakarítás",null,null,{"$f":"IF(OR(Havi_kiadások_táblázat[[#This Row],[Tervezett költség]]=\"\",Havi_kiadások_táblázat[[#This Row],[Tényleges költség]]=\"\"),\"\",Havi_kiadások_táblázat[[#This Row],[Tervezett költség]]-Havi_kiadások_táblázat[[#This Row],[Tényleges költség]])","v":""},{"$f":"Havi_kiadások_táblázat[[#This Row],[Tényleges költség]]","v":0}]
[null,"Szövetségi","Adók",{"v":300,"d":"300 Ft"},{"v":300,"d":"300 Ft"},{"$f":"IF(OR(Havi_kiadások_táblázat[[#This Row],[Tervezett költség]]=\"\",Havi_kiadások_táblázat[[#This Row],[Tényleges költség]]=\"\"),\"\",Havi_kiadások_táblázat[[#This Row],[Tervezett költség]]-Havi_kiadások_táblázat[[#This Row],[Tényleges költség]])","v":{"v":0,"d":"0 Ft"}},{"$f":"Havi_kiadások_táblázat[[#This Row],[Tényleges költség]]","v":300}]
[null,"Helyi","Adók",null,null,{"$f":"IF(OR(Havi_kiadások_táblázat[[#This Row],[Tervezett költség]]=\"\",Havi_kiadások_táblázat[[#This Row],[Tényleges költség]]=\"\"),\"\",Havi_kiadások_táblázat[[#This Row],[Tervezett költség]]-Havi_kiadások_táblázat[[#This Row],[Tényleges költség]])","v":""},{"$f":"Havi_kiadások_táblázat[[#This Row],[Tényleges költség]]","v":0}]
[null,"Állami","Adók",null,null,{"$f":"IF(OR(Havi_kiadások_táblázat[[#This Row],[Tervezett költség]]=\"\",Havi_kiadások_táblázat[[#This Row],[Tényleges költség]]=\"\"),\"\",Havi_kiadások_táblázat[[#This Row],[Tervezett költség]]-Havi_kiadások_táblázat[[#This Row],[Tényleges költség]])","v":""},{"$f":"Havi_kiadások_táblázat[[#This Row],[Tényleges költség]]","v":0}]
[null,"Busz/taxi","Közlekedés",{"v":100,"d":"100 Ft"},{"v":150,"d":"150 Ft"},{"$f":"IF(OR(Havi_kiadások_táblázat[[#This Row],[Tervezett költség]]=\"\",Havi_kiadások_táblázat[[#This Row],[Tényleges költség]]=\"\"),\"\",Havi_kiadások_táblázat[[#This Row],[Tervezett költség]]-Havi_kiadások_táblázat[[#This Row],[Tényleges költség]])","v":{"v":-50,"d":"-50 Ft"}},{"$f":"Havi_kiadások_táblázat[[#This Row],[Tényleges költség]]","v":150}]
[null,"Üzemanyag","Közlekedés",{"v":450,"d":"450 Ft"},{"v":400,"d":"400 Ft"},{"$f":"IF(OR(Havi_kiadások_táblázat[[#This Row],[Tervezett költség]]=\"\",Havi_kiadások_táblázat[[#This Row],[Tényleges költség]]=\"\"),\"\",Havi_kiadások_táblázat[[#This Row],[Tervezett költség]]-Havi_kiadások_táblázat[[#This Row],[Tényleges költség]])","v":{"v":50,"d":"50 Ft"}},{"$f":"Havi_kiadások_táblázat[[#This Row],[Tényleges költség]]","v":400}]
[null,"Biztosítás","Közlekedés",{"v":300,"d":"300 Ft"},{"v":300,"d":"300 Ft"},{"$f":"IF(OR(Havi_kiadások_táblázat[[#This Row],[Tervezett költség]]=\"\",Havi_kiadások_táblázat[[#This Row],[Tényleges költség]]=\"\"),\"\",Havi_kiadások_táblázat[[#This Row],[Tervezett költség]]-Havi_kiadások_táblázat[[#This Row],[Tényleges költség]])","v":{"v":0,"d":"0 Ft"}},{"$f":"Havi_kiadások_táblázat[[#This Row],[Tényleges költség]]","v":300}]
[null,"Engedélyek ","Közlekedés",{"v":25,"d":"25 Ft"},{"v":25,"d":"25 Ft"},{"$f":"IF(OR(Havi_kiadások_táblázat[[#This Row],[Tervezett költség]]=\"\",Havi_kiadások_táblázat[[#This Row],[Tényleges költség]]=\"\"),\"\",Havi_kiadások_táblázat[[#This Row],[Tervezett költség]]-Havi_kiadások_táblázat[[#This Row],[Tényleges költség]])","v":{"v":0,"d":"0 Ft"}},{"$f":"Havi_kiadások_táblázat[[#This Row],[Tényleges költség]]","v":25}]
[null,"Karbantartás","Közlekedés",{"v":100,"d":"100 Ft"},{"v":50,"d":"50 Ft"},{"$f":"IF(OR(Havi_kiadások_táblázat[[#This Row],[Tervezett költség]]=\"\",Havi_kiadások_táblázat[[#This Row],[Tényleges költség]]=\"\"),\"\",Havi_kiadások_táblázat[[#This Row],[Tervezett költség]]-Havi_kiadások_táblázat[[#This Row],[Tényleges költség]])","v":{"v":50,"d":"50 Ft"}},{"$f":"Havi_kiadások_táblázat[[#This Row],[Tényleges költség]]","v":50}]
[null,"Parkolási díjak","Közlekedés",null,null,{"$f":"IF(OR(Havi_kiadások_táblázat[[#This Row],[Tervezett költség]]=\"\",Havi_kiadások_táblázat[[#This Row],[Tényleges költség]]=\"\"),\"\",Havi_kiadások_táblázat[[#This Row],[Tervezett költség]]-Havi_kiadások_táblázat[[#This Row],[Tényleges költség]])","v":""},{"$f":"Havi_kiadások_táblázat[[#This Row],[Tényleges költség]]","v":0}]
[null,"Autó törlesztése","Közlekedés",{"v":450,"d":"450 Ft"},{"v":450,"d":"450 Ft"},{"$f":"IF(OR(Havi_kiadások_táblázat[[#This Row],[Tervezett költség]]=\"\",Havi_kiadások_táblázat[[#This Row],[Tényleges költség]]=\"\"),\"\",Havi_kiadások_táblázat[[#This Row],[Tervezett költség]]-Havi_kiadások_táblázat[[#This Row],[Tényleges költség]])","v":{"v":0,"d":"0 Ft"}},{"$f":"Havi_kiadások_táblázat[[#This Row],[Tényleges költség]]","v":450}]

{"sheet":"További adatok","index":3,"n_rows":17,"n_cols":6,"rows_kept":17}
[{"$nulls":5}," "]
[null,"A költségvetési diagramhoz tartozó kimutatás",null,null,"Kategórialista"]
[]
[null,"Kategória","Költség",null,"Kategória felvételéhez írjon be szöveget fent"]
[null,"Háziállatok",{"v":100,"d":"100 Ft"},null,"Gyerekek"]
[null,"Ajándék és jótékonyság",{"v":125,"d":"125 Ft"},null,"Szórakozás"]
[null,"Gyerekek",{"v":140,"d":"140 Ft"},null,"Étel"]
[null,"Kozmetikumok",{"v":140,"d":"140 Ft"},null,"Ajándék és jótékonyság"]
[null,"Hitelek",{"v":200,"d":"200 Ft"},null,"Szállás"]
[null,"Megtakarítás",{"v":200,"d":"200 Ft"},null,"Biztosítás"]
[null,"Adók",{"v":300,"d":"300 Ft"},null,"Hitelek"]
[null,"Szórakozás",{"v":358,"d":"358 Ft"},null,"Kozmetikumok"]
[null,"Biztosítás",{"v":900,"d":"900 Ft"},null,"Háziállatok"]
[null,"Étel",{"v":1320,"d":"1,320 Ft"},null,"Megtakarítás"]
[null,"Közlekedés",{"v":1375,"d":"1,375 Ft"},null,"Adók"]
[null,"Szállás",{"v":2702,"d":"2,702 Ft"},null,"Közlekedés"]
[null,"Végösszeg",{"v":7860,"d":"7,860 Ft"}]